[Event "German Bundesliga 2023-24"]
[Site "Germany"]
[Date "2024.02.24"]
[Round "10.34"]
[White "Pavlidis, Antonios"]
[Black "Ragger, Markus"]
[Result "1/2-1/2"]
[ECO "C67"]
[WhiteElo "2566"]
[BlackElo "2615"]
[Annotator "RC"]
[PlyCount "56"]
[EventDate "2023.10.20"]
[EventType "team-tourn"]
[EventCountry "GER"]
[SourceTitle "playchess.com"]
[Source "ChessBase"]
[SourceQuality "1"]
[TimeControl "40/6000+30:3000+30"]

1. e4 {[%emt 0:00:02]} e5 {[%emt 0:00:01]} 2. Nf3 {[%emt 0:00:07]} Nc6 {[%emt 0:00:04]} 3. Bb5 {[%emt 0:00:07]} Nf6 {[%emt 0:00:03]} 4. O-O {[%emt 0:00:10]} Nxe4 {[%emt 0:00:03]} 5. Re1 {[%emt 0:00:11]} Nd6 {[%emt 0:00:03]} 6. Nxe5 {[%emt 0:00:22]} Be7 {[%emt 0:00:06]} 7. Bf1 {[%emt 0:00:09]} Nxe5 {[%emt 0:00:08]} 8. Rxe5 {[%emt 0:00:06]} O-O {[%emt 0:00:05]} 9. d4 {[%emt 0:01:14]} Bf6 {[%emt 0:00:22]} 10. Re1 {[%emt 0:00:36]} Re8 {[%emt 0:00:03]} 11. c3 {[%emt 0:01:15]} Rxe1 {[%emt 0:01:41]} 12. Qxe1 {[%emt 0:01:07]} Ne8 {[%emt 0:00:03]} 13. Bf4 {[%emt 0:00:15]} d5 {[%emt 0:00:15]} 14. Bd3 {[%emt 0:00:06]} g6 {[%emt 0:00:57]} 15. Nd2 {[%emt 0:00:21]} Ng7 {[%emt 0:00:00]} 16. Qe2 {[%emt 0:00:26]} c6 {[%emt 0:00:03]} 17. Nf3 {[%emt 0:03:01]} Bf5 {[%emt 0:04:05]} 18. Bxf5 {[%emt 0:01:38]} Nxf5 {[%emt 0:00:07]} 19. Re1 {[%emt 0:00:07]} Ng7 {[%emt 0:00:21]} 20. Be5 {[%emt 0:01:15]} Ne6 {[%emt 0:01:04]} 21. Bxf6 {[%emt 0:05:36]} Qxf6 {[%emt 0:00:19]} 22. Ne5 {[%emt 0:00:34]} Re8 {[%emt 0:01:39]} 23. Ng4 {[%emt 0:06:13]} Qd8 {[%emt 0:01:18]} 24. Qe5 {[%emt 0:00:37]} Ng7 {[%emt 0:00:32]} 25. Qxe8+ {[%emt 0:00:09]} Nxe8 {[%emt 0:00:05]} 26. Rxe8+ {[%emt 0:00:05]} Qxe8 {[%emt 0:00:04]} 27. Nf6+ {[%emt 0:00:04]} Kf8 {[%emt 0:00:05]} 28. Nxe8 {[%emt 0:00:04]} Kxe8 {[%emt 0:00:05]} 1/2-1/2

[Event "German Bundesliga 2023-24"]
[Site "Germany"]
[Date "2024.02.24"]
[Round "10.35"]
[White "L'Ami, Erwin"]
[Black "Plat, Vojtech"]
[Result "1/2-1/2"]
[ECO "E48"]
[WhiteElo "2627"]
[BlackElo "2503"]
[Annotator "ChessBase"]
[PlyCount "65"]
[EventDate "2023.10.20"]
[EventType "team-tourn"]
[EventCountry "GER"]
[SourceTitle "playchess.com"]
[Source "ChessBase"]
[SourceQuality "1"]
[TimeControl "40/6000+30:3000+30"]

1. d4 {[%emt 0:00:05]} Nf6 {[%emt 0:00:08]} 2. c4 {[%emt 0:00:16]} e6 {[%emt 0:00:13]} 3. Nc3 {[%emt 0:01:36]} Bb4 {[%emt 0:00:09]} 4. e3 {[%emt 0:00:28]} d5 {[%emt 0:00:35]} 5. Bd3 {[%emt 0:02:42]} c5 {[%emt 0:01:41]} 6. Nge2 {[%emt 0:02:21]} Nc6 {[%emt 0:05:44]} 7. cxd5 {[%emt 0:01:36]} Nxd5 {[%emt 0:05:40]} 8. O-O {[%emt 0:02:35]} cxd4 {[%emt 0:01:12]} 9. exd4 {[%emt 0:00:24]} O-O {[%emt 0:00:35]} 10. Bc2 {[%emt 0:02:38]} Be7 {[%emt 0:06:09]} 11. Qd3 {[%emt 0:03:44]} g6 {[%emt 0:00:29]} 12. Bh6 {[%emt 0:08:03]} Ncb4 {[%emt 0:04:26]} 13. Qd2 {[%emt 0:01:28]} Nxc2 {[%emt 0:00:12]} 14. Bxf8 {[%emt 0:10:42]} Nxa1 {[%emt 0:00:13]} 15. Bxe7 {[%emt 0:00:13]} Nxe7 {[%emt 0:01:20]} 16. Rxa1 {[%emt 0:11:34]} Bd7 {[%emt 0:01:12]} 17. Ne4 {[%emt 0:06:47]} Nf5 {[%emt 0:09:22]} 18. N2g3 {[%emt 0:05:12]} Nxg3 {[%emt 0:01:57]} 19. hxg3 {[%emt 0:00:22]} Bc6 {[%emt 0:00:03]} 20. Nc3 {[%emt 0:00:45]} Qd6 {[%emt 0:00:18]} 21. Rd1 {[%emt 0:07:15]} Bd5 {[%emt 0:01:22]} 22. g4 {[%emt 0:01:50]} Kg7 {[%emt 0:04:05]} 23. Qe3 {[%emt 0:00:34]} Rh8 {[%emt 0:02:05]} 24. Qe5+ {[%emt 0:13:25]} Qxe5 {[%emt 0:02:03]} 25. dxe5 {[%emt 0:00:08]} Bc6 {[%emt 0:00:09]} 26. f3 {[%emt 0:00:22]} h5 {[%emt 0:00:09]} 27. gxh5 {[%emt 0:00:30]} Rxh5 {[%emt 0:00:23]} 28. Re1 {[%emt 0:00:15]} a5 {[%emt 0:01:40]} 29. Kf2 {[%emt 0:02:02]} Kf8 {[%emt 0:00:41]} 30. Re3 {[%emt 0:06:19]} Rh1 {[%emt 0:00:59]} 31. Re1 {[%emt 0:00:08]} Rh5 {[%emt 0:00:03]} 32. Re3 {[%emt 0:00:10]} Rh1 {[%emt 0:00:27]} 33. Re1 {[%emt 0:00:10]} 1/2-1/2

[Event "German Bundesliga 2023-24"]
[Site "Germany"]
[Date "2024.02.24"]
[Round "10.36"]
[White "Burg, Twan"]
[Black "Andersen, Mads"]
[Result "0-1"]
[ECO "C88"]
[WhiteElo "2530"]
[BlackElo "2606"]
[Annotator "TA"]
[PlyCount "118"]
[EventDate "2023.10.20"]
[EventType "team-tourn"]
[EventCountry "GER"]
[SourceTitle "playchess.com"]
[Source "ChessBase"]
[SourceQuality "1"]
[TimeControl "40/6000+30:3000+30"]

{[%evp 20,118,28,30,15,16,10,16,16,0,4,0,0,0,0,0,16,0,27,29,31,41,33,37,42,30,22,0,0,0,21,6,26,29,26,0,0,10,13,-270,-205,-198,-209,-204,-203,-221,-212,-257,-207,-239,-210,-236,-226,-212,-212,-218,-210,-226,-226,-245,-226,-226,-226,-241,-226,-225,-225,-245,-245,-237,-237,-241,-245,-306,-237,-237,-237,-237,-237,-237,-237,-237,-237,-408,-408,-428,-417,-462,-407,-427,-433,-424,-412,-456,-460,-428,-433,-458,-447,-506,-501]} 1. e4 {[%emt 0:00:03]} e5 {[%emt 0:00:11]} 2. Nf3 {[%emt 0:00:07]} Nc6 {[%emt 0:00:09]} 3. Bb5 {[%emt 0:00:10]} a6 {[%emt 0:00:14]} 4. Ba4 {[%emt 0:00:05]} Nf6 {[%emt 0:00:10]} 5. O-O {[%emt 0:00:11]} Be7 {[%emt 0:00:16]} 6. Re1 {[%emt 0:00:14]} b5 {[%emt 0:00:11]} 7. Bb3 {[%emt 0:00:06]} O-O {[%emt 0:00:12]} 8. a4 {[%emt 0:00:33]} Bb7 {[%emt 0:00:30]} 9. d3 {[%emt 0:01:44]} d6 {[%emt 0:01:21]} 10. Nbd2 {[%emt 0:01:23]} Nd7 {[%emt 0:01:16]} 11. c3 {[%emt 0:11:51]} Nc5 {[%emt 0:01:08]} 12. Bc2 {[%emt 0:00:28]} Nxa4 {[%emt 0:01:22]} 13. Bxa4 {[%emt 0:00:28]} bxa4 {[%emt 0:00:08] The position is equal.} 14. Rxa4 {[%emt 0:07:30]} Rb8 {[%emt 0:16:27]} 15. d4 {[%emt 0:00:36]} exd4 {[%emt 0:04:25]} 16. cxd4 {[%emt 0:01:23]} d5 {[%emt 0:00:38]} 17. e5 {[%emt 0:00:44]} Qd7 {[%emt 0:19:56]} 18. Nb3 {[%emt 0:07:28]} Nd8 {[%emt 0:04:11]} 19. Nc5 {[%emt 0:05:11] Black is weak on the dark squares} Qc6 {[%emt 0:18:38]} 20. b4 {[%emt 0:11:39]} Bc8 {[%emt 0:02:27]} 21. h3 {[%emt 0:03:57] Repels Bg4} Qg6 {[%emt 0:21:14]} 22. Kh1 {[%emt 0:08:18]} Rb6 {[%emt 0:00:02]} 23. Bf4 {[%emt 0:04:11]} Bf5 {[%emt 0:04:06]} 24. Qe2 {[%emt 0:05:34]} Nc6 {[%emt 0:01:54]} 25. e6 {[%emt 0:03:26]} (25. Rxa6 Bxc5 26. bxc5 Bd3 $17) (25. Nxa6 Bc2 26. Ra3 Be4 $17) 25... Bxe6 {[%emt 0:05:12]} 26. Bxc7 {[%emt 0:02:00]} Rxb4 {[%emt 0:00:10] [#] And now ...Bxc5 would win.} 27. Ne5 {[%emt 0:17:09]} (27. Rxa6 Nxd4 28. Nxd4 Rxd4 (28... Bxc5 29. Nxe6 fxe6 30. Rxe6 $15) 29. Nxe6 Re4 $15) (27. Nxe6 $5 Rxa4 28. Nxf8 Kxf8 29. Bd8 $11) 27... Nxe5 $40 {[%emt 0:00:10][%mdl 128] Black is up to no good.} 28. Rxb4 {[%emt 0:00:08]} Bxc5 $1 {[%emt 0:00:08]} 29. Rb8 {[%emt 0:14:42][%mdl 8192] Loses the game.} (29. dxc5 $11 {and White stays safe.} Nd3 30. Reb1 Nxb4 31. Rxb4) 29... Nd7 {[%emt 0:02:32]} (29... Bxd4 $2 {perishes.} 30. Rxf8+ Kxf8 31. Qxa6 $18 (31. Bxe5 Bxe5 32. Qxe5 Qf6 $18)) 30. Rxf8+ {[%emt 0:00:30]} Bxf8 {[%emt 0:00:03]} 31. Qxa6 {[%emt 0:00:07]} h5 {[%emt 0:01:03]} 32. Bf4 {[%emt 0:02:59]} Kh7 {[%emt 0:01:20]} 33. Qe2 {[%emt 0:00:36]} Qf5 {[%emt 0:01:07]} 34. Bh2 {[%emt 0:00:25]} Bb4 {[%emt 0:00:56]} 35. Rc1 {[%emt 0:00:17]} Nf6 {[%emt 0:00:36]} 36. Qc2 {[%emt 0:00:27]} Qxc2 {[%emt 0:01:40]} 37. Rxc2 {[%emt 0:00:01]} Nd7 {[%emt 0:01:00]} 38. f3 {[%emt 0:01:10]} h4 {[%emt 0:00:26]} 39. Kg1 {[%emt 0:00:15]} Kg6 {[%emt 0:00:25]} 40. Kf2 {[%emt 0:00:30]} Be7 {[%emt 0:00:38]} 41. Ke3 {[%emt 0:02:44]} Kf5 {[%emt 0:06:10]} 42. Rc6 {[%emt 0:02:23]} Bg5+ {[%emt 0:00:31]} 43. Kd3 {[%emt 0:01:08]} Nf8 {[%emt 0:00:49]} 44. Ke2 {[%emt 0:00:38]} Ng6 {[%emt 0:01:38]} 45. Kf2 {[%emt 0:00:05]} Ne7 {[%emt 0:03:36]} 46. Rb6 {[%emt 0:00:52]} Kg6 {[%emt 0:02:40]} 47. Ke2 {[%emt 0:00:39]} Nf5 {[%emt 0:00:23]} 48. Bg1 {[%emt 0:00:20]} Bf6 {[%emt 0:00:19]} 49. Kd3 {[%emt 0:00:10]} Bd8 {[%emt 0:03:50]} 50. Rc6 {[%emt 0:01:12]} Kg5 {[%emt 0:01:27]} 51. Ra6 $2 {[%emt 0:01:10]} (51. Rc5) 51... Bd7 $19 {[%emt 0:01:11] [#] Hoping for ...Bb5+.} 52. Ra7 {[%emt 0:00:56]} Bb5+ {[%emt 0:00:22]} 53. Kd2 {[%emt 0:00:31]} Kg6 {[%emt 0:03:53] ...Bf1 would now be deadly.} 54. Ra1 {[%emt 0:00:24]} Bg5+ {[%emt 0:01:06]} 55. Kc3 {[%emt 0:00:05]} Bc4 {[%emt 0:01:13]} 56. Re1 {[%emt 0:00:21]} Ng3 {[%emt 0:01:12] Threatens to win with ...Ne2+. Black is clearly winning.} 57. Bf2 {[%emt 0:00:11]} Ne2+ {[%emt 0:01:04]} 58. Kc2 {[%emt 0:00:04]} Nf4 {[%emt 0:00:41][%cal Of4d3] aiming for ...Nd3!} 59. Rg1 {[%emt 0:00:02]} Nd3 {[%emt 0:00:53] Weighted Error Value: White=0.23 (precise) /Black=0.10 (very precise) .  Loses game:     	White=1     	---        Mistake:       	White=1     	---        Inaccurate:     	---       	Black=1      OK:         	White=16    	Black=26     Best:        	White=2     	Black=2      Strong:       	---       	Black=1} 0-1

[Event "German Bundesliga 2023-24"]
[Site "Germany"]
[Date "2024.02.24"]
[Round "10.37"]
[White "Van Wely, Loek"]
[Black "Swinkels, Robin"]
[Result "1/2-1/2"]
[ECO "D41"]
[WhiteElo "2626"]
[BlackElo "2515"]
[Annotator "TA"]
[PlyCount "91"]
[EventDate "2023.10.20"]
[EventType "team-tourn"]
[EventCountry "GER"]
[SourceTitle "playchess.com"]
[Source "ChessBase"]
[SourceQuality "1"]
[TimeControl "40/6000+30:3000+30"]

{[%evp 21,91,0,0,0,0,-8,-18,-26,-38,-20,-15,-45,-49,-49,-40,-46,-40,-36,-39,-73,-65,-69,-66,-83,-92,-118,0,0,0,-32,-58,-70,-52,-57,-13,-28,-28,-27,-28,-29,-25,-49,-27,-416,-17,-19,0,0,0,0,0,0,0,0,0,0,0,0,0,0,0,0,0,0,0,0,0,0,0,0,0,0]} 1. Nf3 {[%emt 0:00:27]} d5 {[%emt 0:01:17]} 2. c4 {[%emt 0:00:13]} e6 {[%emt 0:00:05]} 3. d4 {[%emt 0:00:19]} Nf6 {[%emt 0:00:05]} 4. Nc3 {[%emt 0:00:06]} c5 {[%emt 0:01:39]} 5. e3 {[%emt 0:02:55]} Nc6 {[%emt 0:00:32]} 6. cxd5 {[%emt 0:05:41]} Nxd5 {[%emt 0:00:21]} 7. Bc4 {[%emt 0:01:46]} cxd4 {[%emt 0:00:26]} 8. exd4 {[%emt 0:00:10]} Be7 {[%emt 0:00:11]} 9. O-O {[%emt 0:00:08]} O-O {[%emt 0:00:07]} 10. Re1 {[%emt 0:00:21]} Bf6 {[%emt 0:05:26]} 11. Ne4 {[%emt 0:01:41]} b6 {[%emt 0:14:39]} 12. Nxf6+ {[%emt 0:06:39]} Nxf6 {[%emt 0:00:13]} 13. Bg5 {[%emt 0:01:03]} Bb7 {[%emt 0:28:41]} 14. a3 {[%emt 0:17:31]} Rc8 {[%emt 0:08:16][%cal Oc6d4]} 15. Ba2 {[%emt 0:09:09]} h6 {[%emt 0:12:09]} 16. Bh4 {[%emt 0:02:45]} Ne7 {[%emt 0:00:04]} 17. Bxf6 {[%emt 0:02:14]} gxf6 {[%emt 0:00:03]} 18. Nh4 {[%emt 0:00:59]} Bd5 {[%emt 0:10:12]} 19. Qd2 {[%emt 0:33:49]} Kh7 {[%emt 0:05:21]} 20. Bb1+ {[%emt 0:01:32]} f5 {[%emt 0:00:05]} 21. Re3 {[%emt 0:01:34]} Rg8 {[%emt 0:05:48]} 22. Rh3 {[%emt 0:01:15][%cal Oh4f5] [#] Nxf5! would now be deadly.} Qf8 {[%emt 0:00:03] Hoping for ...Qg7.} 23. Bd3 {[%emt 0:03:20]} Rg4 {[%emt 0:02:19]} (23... Qg7 $17 {[%cal Og7g4] ...Qg4! is the strong threat.} 24. Bf1 Rcd8) 24. Be2 $11 {[%emt 0:05:00]} Rg8 {[%emt 0:03:20]} 25. Nf3 {[%emt 0:00:00]} Qg7 {[%emt 0:01:33] Prevents Ng5+.} 26. Rg3 {[%emt 0:02:46]} Qf6 {[%emt 0:00:02]} 27. Ne5 {[%emt 0:02:02]} Nc6 {[%emt 0:04:43]} (27... Ng6 {simplifies} 28. Nxg6 Rxg6 29. Re1 Be4) 28. Qf4 {[%emt 0:00:59]} (28. Ba6 {keeps more tension.} Rcd8 29. Qc3 Nxd4 30. Qxd4 Bb7 31. Qa4) 28... Rxg3 {[%emt 0:02:07]} 29. hxg3 {[%emt 0:00:13]} Nxe5 {[%emt 0:00:02]} 30. dxe5 {[%emt 0:00:08]} Qg5 {[%emt 0:00:05]} 31. Qd4 {[%emt 0:02:22]} Rc2 {[%emt 0:01:44]} 32. Bd3 {[%emt 0:01:30][%mdl 8192]} (32. Bf3 $11 {and White has nothing to worry.}) 32... Rd2 $2 {[%emt 0:00:06]} (32... Qd2 $19 33. Rf1 Bc4 (33... Rxb2 $2 34. Qh4 $19) 34. Qxc4 Rxc4 35. Bxc4 Qxb2) 33. Qc3 $1 {[%emt 0:00:38] The position is equal.} Kg7 {[%emt 0:01:49][%cal Od5g2]} 34. Re1 {[%emt 0:01:58][%cal Od3f5]} h5 {[%emt 0:00:43]} 35. Bxf5 {[%emt 0:00:30]} h4 $1 {[%emt 0:00:03] [#] Strongly threatening ...hxg3.} (35... exf5 $2 {perishes.} 36. e6+ Qf6 (36... f6 $2 37. e7 $18) 37. Qxd2 $18) 36. Be4 {[%emt 0:02:31]} hxg3 {[%emt 0:02:05]} 37. fxg3 {[%emt 0:00:02]} Bxe4 {[%emt 0:00:30]} 38. Rxe4 {[%emt 0:00:02][%mdl 4096] Endgame. KQR-KQR} Rd1+ {[%emt 0:00:10]} 39. Re1 {[%emt 0:01:42]} Rd5 {[%emt 0:01:33]} 40. Qf3 {[%emt 0:01:00]} Rxe5 {[%emt 0:01:05]} 41. Qc3 {[%emt 0:03:23]} f6 {[%emt 0:01:12]} 42. Rxe5 {[%emt 0:00:19]} fxe5 {[%emt 0:00:13]} 43. Kf2 {[%emt 0:04:14]} Qf5+ {[%emt 0:02:53]} 44. Ke3 {[%emt 0:02:02]} Qg5+ {[%emt 0:00:04]} 45. Ke2 {[%emt 0:00:21]} Qg4+ {[%emt 0:00:19]} 46. Qf3 {[%emt 0:08:25] Weighted Error Value: White=0.24 (precise) /Black=0.24 (precise) .  Loses game:     	White=1     	---        Missed win:     	---       	Black=1      Mistake:       	---       	Black=1      Inaccurate:     	White=3     	Black=1      OK:         	White=16    	Black=12     Best:        	---       	Black=2      Strong:       	White=1     	Black=1} 1/2-1/2

[Event "German Bundesliga 2023-24"]
[Site "Germany"]
[Date "2024.02.24"]
[Round "10.38"]
[White "Cyborowski, Lukasz"]
[Black "Ganguly, Surya Shekhar"]
[Result "1/2-1/2"]
[ECO "A34"]
[WhiteElo "2479"]
[BlackElo "2578"]
[Annotator "TA"]
[PlyCount "68"]
[EventDate "2023.10.20"]
[EventType "team-tourn"]
[EventCountry "GER"]
[SourceTitle "playchess.com"]
[Source "ChessBase"]
[SourceQuality "1"]
[TimeControl "40/6000+30:3000+30"]

{[%evp 9,68,0,2,-6,-8,-25,-19,-22,-22,-19,-19,-23,-15,-38,0,0,7,14,15,0,0,-16,-14,-11,-8,-12,-16,-12,0,0,0,-16,0,-3,0,-9,-6,-8,0,0,54,0,0,0,0,0,0,0,33,0,11,0,2,0,0,0,17,0,33,0,40]} 1. Nf3 {[%emt 0:00:07]} c5 {[%emt 0:00:43]} 2. c4 {[%emt 0:01:40]} Nf6 {[%emt 0:00:07]} 3. Nc3 {[%emt 0:05:44]} Nc6 {[%emt 0:00:08]} 4. e3 {[%emt 0:01:57]} e5 {[%emt 0:01:26]} 5. a3 {[%emt 0:06:35]} d5 {[%emt 0:05:52] Threatens to win with ...d4.} 6. cxd5 {[%emt 0:01:28]} Nxd5 {[%emt 0:00:06]} 7. Bb5 {[%emt 0:00:55]} Nxc3 {[%emt 0:00:46]} 8. bxc3 {[%emt 0:01:10]} Bd6 {[%emt 0:00:05]} 9. e4 {[%emt 0:10:26]} O-O {[%emt 0:00:25]} 10. O-O {[%emt 0:00:05]} Qe7 {[%emt 0:02:32]} 11. d3 {[%emt 0:01:56]} Bg4 {[%emt 0:04:29][%cal Bc8g4,Bg4h5,Bh5g6][%mdl 32]} 12. h3 {[%emt 0:01:01]} Bh5 {[%emt 0:00:07]} 13. g4 {[%emt 0:05:22]} Bg6 {[%emt 0:00:06]} 14. Bxc6 {[%emt 0:00:15]} bxc6 {[%emt 0:00:05]} 15. c4 {[%emt 0:00:04]} Rab8 {[%emt 0:12:48]} 16. Be3 {[%emt 0:14:03]} Rb6 {[%emt 0:07:00]} 17. Rb1 {[%emt 0:07:34]} Rfb8 {[%emt 0:01:42]} 18. Qc2 {[%emt 0:04:12]} Qb7 {[%emt 0:01:49][%cal Rb6b1]} 19. Nd2 {[%emt 0:02:05]} f6 {[%emt 0:01:25]} 20. Qa4 {[%emt 0:05:23]} Bf8 {[%emt 0:03:57]} 21. Qc2 {[%emt 0:04:37]} Bf7 {[%emt 0:02:36]} 22. f3 {[%emt 0:04:29]} h5 {[%emt 0:11:46]} 23. Kf2 {[%emt 0:01:10]} g5 {[%emt 0:07:58]} 24. Qc3 {[%emt 0:03:46]} Qa6 {[%emt 0:02:15]} (24... Be6 $11) 25. Rg1 {[%emt 0:05:45]} (25. Rxb6 $14 axb6 26. h4 gxh4 27. g5) 25... h4 $11 {[%emt 0:00:22]} 26. Ke2 {[%emt 0:00:42]} Qa4 {[%emt 0:00:45]} 27. Rgc1 {[%emt 0:01:35]} Be7 {[%emt 0:03:16]} 28. Rf1 {[%emt 0:02:03]} Kf8 {[%emt 0:04:15][%cal Bg8f8,Bf8e8,Be8d7,Bd7c7,Bc7b7][%mdl 32]} 29. Rfc1 {[%emt 0:01:01]} Ke8 {[%emt 0:00:37]} 30. Rf1 {[%emt 0:00:55]} Kd7 {[%emt 0:01:35]} 31. Rfc1 {[%emt 0:00:04]} Bd6 {[%emt 0:00:58]} 32. Rf1 {[%emt 0:00:47]} Kc7 {[%emt 0:00:36]} 33. Rfc1 {[%emt 0:00:42]} (33. Rxb6 $5 Rxb6 34. Ra1 $11) 33... Kb7 {[%emt 0:01:31]} 34. Rb3 {[%emt 0:03:42]} Kc7 {[%emt 0:09:49] An interesting draw.   Weighted Error Value: White=0.10 (very precise) /Black=0.10 (very precise) .  Mistake:       	White=1     	Black=1      Inaccurate:     	White=2     	Black=4      OK:         	White=8     	Black=5      Best:        	---       	Black=1} (34... Kc8 $5 35. Rcb1 Rxb3 36. Rxb3 (36. Nxb3 Qxa3 37. Kd1 Rb6 $11) 36... Rb6 $14) 1/2-1/2

[Event "German Bundesliga 2023-24"]
[Site "Germany"]
[Date "2024.02.24"]
[Round "10.39"]
[White "Nikolic, Predrag"]
[Black "Jaracz, Pawel"]
[Result "1/2-1/2"]
[ECO "D60"]
[WhiteElo "2531"]
[BlackElo "2472"]
[Annotator "TA"]
[PlyCount "44"]
[EventDate "2023.10.20"]
[EventType "team-tourn"]
[EventCountry "GER"]
[SourceTitle "playchess.com"]
[Source "ChessBase"]
[SourceQuality "1"]
[TimeControl "40/6000+30:3000+30"]

{[%evp 15,44,0,32,18,17,23,32,16,20,16,25,18,25,27,30,16,24,32,21,10,37,18,26,29,29,0,0,0,0,-10,-11]} 1. d4 {[%emt 0:00:06]} d5 {[%emt 0:00:28]} 2. c4 {[%emt 0:00:09]} e6 {[%emt 0:00:12]} 3. Nc3 {[%emt 0:00:21]} Nf6 {[%emt 0:00:14][%cal Bg8f6,Bf6d5,Bd5e7,Be7g6][%mdl 32]} 4. Bg5 {[%emt 0:00:39]} Be7 {[%emt 0:01:06]} 5. e3 {[%emt 0:00:28]} O-O {[%emt 0:00:27]} 6. Nf3 {[%emt 0:00:50][%cal Bg1f3,Bf3d4,Bd4c2][%mdl 32]} Nbd7 {[%emt 0:00:42]} 7. cxd5 {[%emt 0:04:25]} Nxd5 {[%emt 0:01:17]} 8. Bxe7 {[%emt 0:02:22]} Nxe7 {[%emt 0:00:28]} 9. Rc1 {[%emt 0:01:57]} c5 {[%emt 0:02:24]} 10. Bb5 {[%emt 0:05:47]} cxd4 {[%emt 0:00:36]} 11. Nxd4 {[%emt 0:03:57] White is slightly better.} Nf6 {[%emt 0:09:52]} 12. O-O {[%emt 0:01:13]} Ng6 {[%emt 0:22:46]} 13. Be2 {[%emt 0:04:01]} Qe7 {[%emt 0:07:59]} 14. Qa4 {[%emt 0:09:42]} Bd7 {[%emt 0:12:06]} 15. Qa5 {[%emt 0:04:13]} e5 {[%emt 0:07:37]} 16. Nc2 {[%emt 0:02:54]} Rfc8 {[%emt 0:03:50]} 17. Qb4 {[%emt 0:03:42]} Qe6 {[%emt 0:05:26]} 18. Rfd1 {[%emt 0:02:46][%cal Oc2a3]} Bc6 {[%emt 0:00:49]} 19. f3 {[%emt 0:10:27]} Qf5 {[%emt 0:01:05]} 20. e4 {[%emt 0:05:19]} Qg5 {[%emt 0:00:18] The position is equal.} 21. Kh1 {[%emt 0:00:16]} h5 {[%emt 0:01:08]} 22. Bf1 {[%emt 0:09:53]} h4 {[%emt 0:00:58] A rather calm draw.   Weighted Error Value: White=0.08 (flawless) /Black=0.07 (flawless) .  Inaccurate:     	White=1     	Black=1      OK:         	White=3     	Black=7} 1/2-1/2